Cogmind - Beta 17 @@@ ROGUE MODE // 2026.07.14 @ 12:55:13 // Winter2019/RPGLIKE Player: Gallgagger Result: Self-destructed Performance ------------- Evolutions (0) 0 Regions Visited (4) 800 Robots Destroyed (4) 20 Value Destroyed (46) 46 Prototype IDs (23) 460 Alien Tech Used (0) 0 Bonus (252) 252 TOTAL SCORE: 1578 Bonus ------- Aligned with FarCom 300 Friendly Fire -48 Cogmind --------- Core Integrity 340/600 Matter 259/300 Energy 98/100 System Corruption 3% Temperature Cool (4) Movement Flying (37) Location -9/Mines Parts ------- > --- POWER (1) -------- (None) > --- PROPULSION (2) --- Flight Unit Flight Unit > --- UTILITY (1) ------ (None) > --- WEAPON (1) ------- Assault Rifle > --- INVENTORY (0) ---- (None) Peak State ------------ > --- POWER ------------ (None) > --- PROPULSION ------- Flight Unit Flight Unit > --- UTILITY ---------- (None) > --- WEAPON ----------- Assault Rifle > --- INVENTORY -------- (None) [Rating: 3] Favorites ----------- Power None Propulsion Flight Unit Flight Unit Flight Unit Utility None Weapon Assault Rifle Ballistic Gun Assault Rifle Build | -11 -10 -10 -10 -9 ------- Run | Yrd Mat Min Exi Min Slots Evolved 1 | . 1 . . . Power . | . . . . . Propulsion 1 | . 1 . . . Utility . | . . . . . Weapon . | . . . . . Parts Attached 3 | 1 2 . . . Power . | . . . . . Engine . | . . . . . Core . | . . . . . Reactor . | . . . . . Propulsion 2 | . 2 . . . Treads . | . . . . . Leg . | . . . . . Wheel . | . . . . . Hover . | . . . . . Flight 2 | . 2 . . . Utility . | . . . . . Device . | . . . . . Storage . | . . . . . Processor . | . . . . . Hackware . | . . . . . Protection . | . . . . . Artifact . | . . . . . Weapon 1 | 1 . . . . Energy Gun . | . . . . . Energy Cannon . | . . . . . Ballistic Gun 1 | 1 . . . . Ballistic Cannon . | . . . . . Launcher . | . . . . . Special Weapon . | . . . . . Impact Weapon . | . . . . . Slashing Weapon . | . . . . . Piercing Weapon . | . . . . . Special Melee Weapon . | . . . . . Unidentified Prototypes . | . . . . . Parts Lost . | . . . . . Power . | . . . . . Propulsion . | . . . . . Utility . | . . . . . Weapon . | . . . . . Highest Loss Streak . | . . . . . To Critical Strikes . | . . . . . Average Backups . | . . . . . Power . | . . . . . Propulsion . | . . . . . Utility . | . . . . . Weapon . | . . . . . Tool/Special . | . . . . . Unused Backups . | . . . . . Power . | . . . . . Propulsion . | . . . . . Utility . | . . . . . Weapon . | . . . . . Tool/Special . | . . . . . Average Slot Usage (%) 53 | . 48 60 60 60 Flight 32 | . 26 40 40 40 Ballistic Gun 21 | . 21 20 20 20 Peak Build Rating 3 | 1 3 3 3 3 Average Rating 2 | . 2 3 3 3 On Entrance 2 | . 1 3 3 3 Avg Prop Armor Cover (%) . | . . . . . Naked Turns . | . . . . . Heaviest Build 2 | 2 2 2 2 2 Greatest Support 8 | 3 8 8 8 8 Greatest Overweight (x) . | . . . . . Average Overweight (x) . | . . . . . Largest Inventory Capacity . | . . . . . Average Capacity . | . . . . . Most Carried . | . . . . . Average Carried . | . . . . . Final Capacity . | . . . . . Final Carried . | . . . . . Class Distribution -------------------- 100% | Mutant Dominant Class ---------------- Mutant | -10/Materials Mutant | -10/Mines Mutant | -10/Exiles Mutant | -9/Mines Resources | -11 -10 -10 -10 -9 ----------- Run | Yrd Mat Min Exi Min Matter Collected 234 | 138 45 51 . . Remotely . | . . . . . Salvage Created 30 | . 30 . . . Parts 10 | . 10 . . . Haulers Intercepted . | . . . . . Recyclers Shooed . | . . . . . Parts Field Recycled . | . . . . . Retrieved Matter . | . . . . . Parts Self-Destructed . | . . . . . Prevented . | . . . . . Parts Restored . | . . . . . Kills | -11 -10 -10 -10 -9 ------- Run | Yrd Mat Min Exi Min Combat Hostiles Destroyed 3 | . 3 . . . Guns 3 | . 3 . . . Classes Destroyed 2 | . 2 . . . Operator 1 | . 1 . . . Swarmer 3 | . 3 . . . Best Kill Streak 3 | . 3 . . . Combat Bots Only 2 | . 2 . . . Max Kills in Single Turn 1 | . 1 . . . Gunslinging . | . . . . . Exploded . | . . . . . Melee . | . . . . . Uniques/NPCs Destroyed . | . . . . . Combat | -11 -10 -10 -10 -9 -------- Run | Yrd Mat Min Exi Min Hostile Shots Fired 34 | . 30 . 4 . Missed 11 | . 10 . 1 . Hits 23 | . 20 . 3 . Projectile 23 | . 20 . 3 . Critical Strikes 1 | . . . 1 . Damage Taken 305 | . 171 . 134 . Core 260 | . 149 . 111 . Absorbed by Shields . | . . . . . Redirected to Core 145 | . 64 . 81 . Core Remaining (%) 100 | 100 . . . . Volleys Fired 17 | . 17 . . . Largest 1 | . 1 . . . Hottest 20 | . 20 . . . Shots Fired 17 | . 17 . . . Gun 17 | . 17 . . . Cannon . | . . . . . Launcher . | . . . . . Special . | . . . . . Kinetic 17 | . 17 . . . Thermal . | . . . . . Explosive . | . . . . . Electromagnetic . | . . . . . Robot Hit Streak 8 | . 8 . . . Robot Miss Streak 1 | . 1 . . . Penetration Max . | . . . . . Secondary Targets . | . . . . . Shots Hit Robots 11 | . 11 . . . Core Hits 5 | 1 4 . . . Critical Kills . | . . . . . Critical Parts Destroyed . | . . . . . Critical Strikes . | . . . . . Melee Attacks . | . . . . . Impact . | . . . . . Slashing . | . . . . . Piercing . | . . . . . Sneak Attacks . | . . . . . Combat Hostiles . | . . . . . Follow-up Attacks . | . . . . . Damage Inflicted 214 | 1 149 . 64 . Guns 149 | . 149 . . . Cannons . | . . . . . Explosions . | . . . . . Melee . | . . . . . Ramming 65 | 1 . . 64 . Kinetic 149 | . 149 . . . Thermal . | . . . . . Explosive . | . . . . . Electromagnetic . | . . . . . Impact . | . . . . . Slashing . | . . . . . Piercing . | . . . . . Highest Corruption 3 | . . . 3 3 Average Corruption 3 | . . . 3 3 Corruption Purged . | . . . . . Corruption Blocked . | . . . . . Effects 1 | . . . 1 . Data Loss (minor) 1 | . . . 1 . Overload Shots . | . . . . . Overflow Damage . | . . . . . Projectiles . | . . . . . Explosions . | . . . . . Melee . | . . . . . Knockbacks . | . . . . . Impact . | . . . . . Kinetic . | . . . . . Secondary . | . . . . . Self-Inflicted Damage 56 | . . . 56 . Shots . | . . . . . Rammed 2 | 1 . . 1 . Targets Rammed 2 | 1 . . 1 . Kicked . | . . . . . Crushed . | . . . . . Highest Temperature . | . . . . . Average Temperature . | . . . . . Received Heat Transfer 24 | . 24 . . . Siege Activations . | . . . . . Martial Activations . | . . . . . Shielding Activations . | . . . . . Robots Disrupted . | . . . . . Combat Hostiles . | . . . . . Robots Corrupted . | . . . . . Combat Hostiles . | . . . . . Parts Fried . | . . . . . Impact Corruptions . | . . . . . Robots Melted . | . . . . . Combat Hostiles . | . . . . . Parts Melted . | . . . . . Heat Transferred . | . . . . . Parts Sabotaged . | . . . . . Parts Stolen . | . . . . . Parts Stripped . | . . . . . Power Chain Reactions . | . . . . . Alert | -11 -10 -10 -10 -9 ------- Run | Yrd Mat Min Exi Min Maximum Alert Level . | . . . . . Low Security (%) 100 | 100 100 100 . 100 Level 1 . | . . . . . Level 2 . | . . . . . Level 3 . | . . . . . Level 4 . | . . . . . Level 5 . | . . . . . High Security . | . . . . . Max Security . | . . . . . Peak Influence 71 | . 71 15 . . Initial 15 | . . 15 . . Average 35 | . 42 10 . . Influence Increases 121 | . 121 . . . Destroy 0b10 Robot/C 60 | . 60 . . . Destroy 0b10 Robot/NC 5 | . 5 . . . Destroy Leader 10 | . 10 . . . Destroy Structure 1 | . 1 . . . Lose Combat Pursuer 45 | . 45 . . . Influence Decreases 121 | . 80 36 5 . Entered New Map 31 | . . 26 5 . Time Decay 90 | . 80 10 . . Squads Dispatched 1 | . 1 . . . Investigation . | . . . . . Extermination . | . . . . . Reinforcement 1 | . 1 . . . Assault . | . . . . . Garrison . | . . . . . Intercept . | . . . . . Searches Triggered . | . . . . . Construction Impeded . | . . . . . Haulers Reinforced . | . . . . . Active Scanning Responses . | . . . . . Cargo Convoy Interrupts . | . . . . . Stealth | -11 -10 -10 -10 -9 --------- Run | Yrd Mat Min Exi Min Distress Signals 1 | . 1 . . . Communications Jammed . | . . . . . Distress Signals . | . . . . . Times Spotted 19 | . 18 . 1 . Peak Tracking Total 11 | . 7 . 11 . Tactical Retreats 3 | . 2 . 1 . Traps | -11 -10 -10 -10 -9 ------- Run | Yrd Mat Min Exi Min Traps Triggered . | . . . . . Indirectly . | . . . . . Trap Hack Attempts . | . . . . . Triggered . | . . . . . Disarmed . | . . . . . Reprogrammed . | . . . . . Reused . | . . . . . Traps Extracted . | . . . . . Installed . | . . . . . Triggered . | . . . . . Machines | -11 -10 -10 -10 -9 ---------- Run | Yrd Mat Min Exi Min Machines Disabled 1 | . . . 1 . Max in Single Turn 1 | . . . 1 . Machines Repaired . | . . . . . Machines Dismantled . | . . . . . Machines Sabotaged . | . . . . . Overloaded Fab Kills . | . . . . . Hacking | -11 -10 -10 -10 -9 --------- Run | Yrd Mat Min Exi Min Machines Accessed 1 | . . . 1 . Terminals . | . . . . . Fabricators . | . . . . . Repair Stations . | . . . . . Recycling Units . | . . . . . Scanalyzers . | . . . . . Garrison Access . | . . . . . Total Hacks 1 | . . . 1 . Successful 1 | . . . 1 . Failed . | . . . . . Catastrophic . | . . . . . Database Lockouts . | . . . . . Manual 1 | . . . 1 . Terminals . | . . . . . Fabricators . | . . . . . Repair Stations . | . . . . . Recycling Units . | . . . . . Scanalyzers . | . . . . . Garrison Access . | . . . . . Terminal Hacks 1 | . . . 1 . Proto ID Catalog 1 | . . . 1 . Fabricator Hacks . | . . . . . Repair Station Hacks . | . . . . . Recycling Unit Hacks . | . . . . . Scanalyzer . | . . . . . Garrison Access Hacks . | . . . . . Unauthorized Hacks . | . . . . . Terminals . | . . . . . Fabricators . | . . . . . Repair Stations . | . . . . . Recycling Units . | . . . . . Scanalyzers . | . . . . . Garrison Access . | . . . . . Data Cores Recovered . | . . . . . Used . | . . . . . Hacking Detections . | . . . . . Full Trace Events . | . . . . . Feedback Events . | . . . . . Feedback Blocked . | . . . . . Robot Schematics Acquired . | . . . . . Robots Built . | . . . . . Authchips . | . . . . . Time . | . . . . . Total Robot Build Rating . | . . . . . Part Schematics Acquired . | . . . . . Parts Built . | . . . . . Authchips . | . . . . . Time . | . . . . . Total Part Build Rating . | . . . . . Part Studies Acquired . | . . . . . Parts Repaired . | . . . . . Time . | . . . . . Parts Recycled . | . . . . . Recycled Matter . | . . . . . Retrieved Matter . | . . . . . Retrieved Components . | . . . . . Parts Scanalyzed . | . . . . . Part Schematics Acquired . | . . . . . Parts Damaged . | . . . . . Bothacking | -11 -10 -10 -10 -9 ------------ Run | Yrd Mat Min Exi Min Used RIF Installer . | . . . . . Robots Hacked . | . . . . . Non-combat . | . . . . . Combat . | . . . . . Robot Hacks Applied . | . . . . . Relay Couplers Released . | . . . . . Fabnet Peak Effective % . | . . . . . Robots Rewired . | . . . . . Allies Hacked . | . . . . . Hacks Repelled . | . . . . . Allies | -11 -10 -10 -10 -9 -------- Run | Yrd Mat Min Exi Min Total Allies . | . . . . . Largest Group . | . . . . . Highest-Rated Group . | . . . . . Highest-Rated Ally . | . . . . . Total Orders . | . . . . . Ally Attacks . | . . . . . Total Damage . | . . . . . Kills . | . . . . . Allies Corrupted . | . . . . . Allies Melted . | . . . . . Intel | -11 -10 -10 -10 -9 ------- Run | Yrd Mat Min Exi Min Active Infowar (turns) . | . . . . . Robot Analysis Total . | . . . . . Derelict Logs Recovered . | . . . . . Drone Launches . | . . . . . Drone Recoveries . | . . . . . Exploration | -11 -10 -10 -10 -9 ------------- Run | Yrd Mat Min Exi Min Turns Passed 326 | 11 181 35 97 2 Spaces Moved 728 | 17 357 95 254 5 Core 59 | 17 42 . . . Treads . | . . . . . Legs . | . . . . . Wheels . | . . . . . Hover . | . . . . . Flight 669 | . 315 95 254 5 Fastest Speed 37 | 50 37 37 37 37 Average Speed 38 | 50 38 37 37 37 Slowest Speed 50 | 50 50 37 37 37 Overloaded Moves . | . . . . . Propulsion Burnouts . | . . . . . Robots Hopped 5 | . 5 . . . Potential Cave-ins . | . . . . . Cave-ins Triggered . | . . . . . Exploration Rate (%) 32 | 3 66 25 64 2 Regions Visited 4 Branch Regions 3 Pre-discovered Areas . | . . . . . Known Exits Taken . | . . . . . Unknown Exits Taken 4 | 1 1 1 1 . Scrap Searched 1 | . . 1 . . Spaces Dug . | . . . . . Terrain Destroyed . | . . . . . Melee . | . . . . . Projectile . | . . . . . AOE . | . . . . . Terrain Rammed 2 | . . . 2 . Walls Destroyed . | . . . . . Machines Disabled 1 | . . . 1 . Actions | -11 -10 -10 -10 -9 --------- Run | Yrd Mat Min Exi Min Total 749 | 18 376 94 256 5 Wait 6 | . 6 . . . Move 715 | 16 347 94 253 5 Hop 4 | . 4 . . . Pick Up . | . . . . . Fast Attach 3 | 1 2 . . . Attach . | . . . . . Detach . | . . . . . Swap . | . . . . . Drop . | . . . . . Fire 17 | . 17 . . . Melee . | . . . . . Ram 4 | 1 . . 3 . Kick . | . . . . . Crush . | . . . . . Escape Stasis . | . . . . . Rewire . | . . . . . Trap . | . . . . . Miscellaneous . | . . . . . Route ------- -11/Scrapyard -10/Materials (discovered 4 exits: [*Mat x3] / [*Min]) -10/Mines -10/Exiles (discovered 2 exits: [*Min x2]) -9/Mines History --------- Turn | Location | Event 2 | -11/Scrapyard | Discovered new exit (range 16) 12 | -11/Scrapyard | Entered Materials 76 | -10/Materials | Upgraded with Propulsion slot (x1) 92 | -10/Materials | Discovered new exit (range 11) 147 | -10/Materials | Discovered new exit (range 6) 181 | -10/Materials | Discovered new exit (range 12) 191 | -10/Materials | Discovered new exit (range 6) 193 | -10/Materials | Entered Mines 200 | -10/Mines | Joined a pair of Derelicts in attacking an 0b10 outpost 226 | -10/Mines | Deemed a non-threat by the Exiles lab entrance 227 | -10/Mines | Discovered new exit (range 5) 228 | -10/Mines | Entered Exiles 234 | -10/Exiles | Discovered new exit (range 15) 238 | -10/Exiles | Met 8R-AWN 244 | -10/Exiles | Met EX-HEX 256 | -10/Exiles | Met EX-BIN 261 | -10/Exiles | Aligned with FarCom system 261 | -10/Exiles | Given EX-Vault access code 271 | -10/Exiles | Opened EX-Vault 281 | -10/Exiles | Warned to stay clear of 0b10 Research branches 287 | -10/Exiles | Exiles lab attacked by MAIN.C 306 | -10/Exiles | Build established: Mutant 311 | -10/Exiles | Attacked by the Exiles 322 | -10/Exiles | Discovered new exit (range 10) 325 | -10/Exiles | Entered Mines 327 | -9/Mines | Reached level 2 327 | -9/Mines | Self-destructed Last Messages --------------- 00287_ EXILES: Incoming Unaware force detected on approach from Mines. Prepare for evacuation. 00295_ Slammed into Machine. 00295_ Machine disabled. 00295_ Destabilizing: System corrupted (+2). 00295_ Destabilizing: System corrupted (+1). 00297_ EX-DEC works furiously. 00307_ Slammed into Machine. 00307_ Destabilizing: Core damaged (-24). 00307_ Destabilizing: Core damaged (-6). 00310_ Slammed into EX-DEC. 00311_ EXILES: Additional hostile detected within perimeter. 00313_ EX-DEC: "Let's see what this bad boy can do..." 00313_ EX-DEC deploys DAS Turret. 00314_ System corrupted: Component data lost. 00322_ EXILES: Lab perimeter alert, evacuate immediately. 00322_ EXIT=FOUND LOCATION=UNKNOWN GOAL=ESCAPE 00327_ Reached level 2. Map ----- +----------------------------------------------------+ | | | | | | | | | | | | | | | | | | | | | | | | | | | | | | | | | ?????????????????????????????????????????????????? | | ?????????????????????????????????????????????????? | | ?????????????????????????????????????????????????? | | ?????????????????????????????????????????????????? | | ?????????????????????????????????????????????????? | | ?????????????????????????????????????????????????? | | ?????????????????????????????####????????????????? | | ???????????????????????????### ##???????????????? | | ????????????????????######## t t #???????????????? | | ????????????????????# @ #???????????????? | | ??????????????# #### ##???????????????? | | ??????????????# ###???????## #????????????????? | | ???????????????????????????## ##????????????????? | | ????????????????????????????####?????????????????? | | ?????????????????????????????????????????????????? | | ?????????????????????????????????????????????????? | | ?????????????????????????????????????????????????? | | ?????????????????????????????????????????????????? | | ?????????????????????????????????????????????????? | | ?????????????????????????????????????????????????? | | ?????????????????????????????????????????????????? | | ?????????????????????????????????????????????????? | | ?????????????????????????????????????????????????? | | ?????????????????????????????????????????????????? | | ?????????????????????????????????????????????????? | | ?????????????????????????????????????????????????? | | ?????????????????????????????????????????????????? | | ?????????????????????????????????????????????????? | | ?????????????????????????????????????????????????? | | ?????????????????????????????????????????????????? | | ?????????????????????????????????????????????????? | | ?????????????????????????????????????????????????? | | ?????????????????????????????????????????????????? | | ?????????????????????????????????????????????????? | +----------------------------------------------------+ Best States ------------- Heat Dissipation 25 Energy Generation 5 Energy Capacity 100 Matter Stores 259 Matter Capacity 300 Sight Range 16 Terrain Scan Density 10 Evasion (%) 62 Item Schematics ----------------- None Robot Schematics ------------------ None Fabricated ------------ Nothing Repaired ---------- Nothing Studied --------- None Alien Tech Used ----------------- None Achievements -------------- None Challenges ------------ None RPGLIKE | -11 -10 -10 -10 -9 --------- Run | Yrd Mat Min Exi Min Levels Raised 1 | . . . . 1 XP Earned 4700 | 3000 350 500 350 500 XP Spent 500 | . 500 . . . Upgrades 1 | . 1 . . . Propulsion Slot 1 | . 1 . . . Protomatter Created 24 | . 24 . . . Protomatter Decayed 74 | . 24 50 . . Game ------ Seed BoltInterdictionChaingun Manual? 0 Play Time 00:02:59 Cumulative 660.5 hours Start 2026.07.14 @ 12:51:35 End 2026.07.14 @ 12:55:13 Sessions 1 Manual Loads 0 Difficulty Rogue Special Mode Winter2019/RPGLIKE Game No. 272 Rogue 118 Adventurer 154 Explorer 0 Win Type - Total 22 Types 4/5/4/3/2/1/0/1/1/1 Lore% 95 Gallery% 88 Achievement% 68 Wizard Run 0 Options --------- Layout 0 ASCII 0 Keyboard 0 Movement Numpad Keybinds 0 Fullscreen 2 Font 18/SmallcapsGlow Map View 76x50 Zoom Use 0% Tactical HUD 1 Map Filters NONE Filters NONE Steam 1 RUN: 2c585871-6cbb-4ea2-9cf6-0c498ece9f33